bitfinex/quotes_SOLUSD_20250809
["timestamp","ask_amount","ask_price","bid_price","bid_amount"]
[1754770904911,0.03,181.98,181.97,118.76544781]
[1754770905079,0.03,181.98,181.97,123.81168508]
[1754770906074,6.20510935,181.98,181.97,75.63546951]
[1754770906377,0.71,181.98,181.97,75.63546951]
[1754770906590,6.20510935,181.98,181.97,75.63546951]
[1754770907469,6.20510935,181.98,181.97,75.69212752]
[1754770908097,0.03,181.98,181.97,75.69212752]
[1754770908901,0.71,181.98,181.97,29.92589025]
[1754770909100,6.43623727,181.98,181.97,3.92589025]
[1754770909503,6.43623727,181.98,181.9,40.02]
[1754770909504,5.72623727,181.96,181.9,40.02]
[1754770909686,5.72623727,181.93,181.9,40.02]
[1754770909876,0.68,181.92,181.9,40.02]
[1754770910282,5.72623727,181.93,181.9,40.02]
[1754770910483,0.68,181.91,181.9,40.02]
[1754770910693,6.1772239,181.91,181.9,40.02]
[1754770911600,5.49697155,181.92,181.9,40.02]
[1754770913085,5.49661957,181.93,181.9,40.02]
[1754770913402,6.17661957,181.93,181.9,40.02]
[1754770914893,6.17661957,181.93,181.9,45.74623727]
[1754770915099,0.68,181.92,181.9,40.02]
[1754770915695,0.68,181.92,181.9,40.08]
[1754770915998,5.49661957,181.93,181.9,40.08]
[1754770916502,6.17661957,181.93,181.9,40.08]
[1754770918008,6.17661957,181.93,181.9,45.80623727]
[1754770919083,5.49631746,181.94,181.9,45.80623727]
[1754770919281,0.69,181.97,181.93,5.72623727]
[1754770919606,5.49541133,181.97,181.95,5.72623727]
[1754770919803,6.18541133,181.97,181.96,40.02]
[1754770920782,5.49541133,181.97,181.96,40.02]
[1754770921407,5.52510935,181.98,181.96,43.89347214]
[1754770921612,5.52510935,181.98,181.97,9.59970941]
[1754770921822,0.03,181.98,181.97,4.58347214]
[1754770922117,0.03,181.98,181.97,25.41592498]
[1754770922288,0.03,181.98,181.97,57.14216225]
[1754770923302,0.03,181.98,181.97,64.19216225]
[1754770923491,0.03,181.98,181.97,69.68757358]
[1754770924609,0.03,182.02,182.0,26.0]
[1754770924816,0.03,182.02,182.01,64.70592498]
[1754770925117,0.03,182.02,182.01,65.41592498]
[1754770925711,0.03,182.02,182.01,70.91012859]
[1754770925919,0.03,182.02,182.01,44.97968771]
[1754770926099,0.03,182.02,182.01,29.87347214]
[1754770926295,0.72,182.02,182.01,69.85347214]
[1754770926495,0.03,182.02,182.01,75.57970941]
[1754770927113,0.03,182.02,182.01,91.39592498]
[1754770927488,0.03,182.02,182.01,65.39592498]
[1754770927708,0.03,182.02,182.01,103.94012859]
[1754770927919,0.03,182.02,182.01,104.48954895]
[1754770928999,0.03,182.04,182.01,104.48954895]
[1754770929000,0.03,182.04,182.03,15.10621557]
[1754770929204,5.72623727,182.14,182.06,26.0]
[1754770929422,0.69,182.13,182.09,5.72623727]
[1754770929597,5.49088513,182.12,182.03,5.72623727]
[1754770929799,5.72623727,182.06,182.01,31.72623727]
[1754770930104,6.41623727,182.05,182.02,39.98]
[1754770930300,6.41623727,182.05,181.99,6.43623727]
[1754770930522,6.41623727,182.05,182.0,39.98]
[1754770930523,0.69,182.04,182.0,39.98]
[1754770930705,5.72623727,182.05,182.0,39.98]
[1754770930706,0.69,182.03,182.0,39.98]
[1754770931423,0.69,182.07,182.02,5.72623727]
[1754770931605,6.18269471,182.06,182.03,39.98]
[1754770931801,5.49269471,182.06,182.03,39.98]
[1754770931990,0.69,182.05,182.03,39.98]
[1754770932596,5.49269471,182.06,182.03,45.70623727]
[1754770932802,0.69,182.05,181.99,41.10621557]
[1754770933006,5.72623727,182.03,182.0,39.96]
[1754770933320,19.2244315,182.06,182.01,39.96]
[1754770933321,6.41623727,182.02,182.01,39.96]
[1754770933822,6.18390176,182.02,182.01,39.96]
[1754770936601,11.91013903,182.02,181.96,26.0]
[1754770936823,5.72623727,182.0,181.97,39.96]
[1754770937208,0.69,181.99,181.97,39.96]
[1754770937499,6.41623727,182.01,181.97,40.02]
[1754770937714,0.69,182.01,181.98,5.72623727]
[1754770937922,0.69,182.01,181.99,39.96]
[1754770938223,19.25865618,182.02,181.99,39.96]
[1754770938428,6.41623727,182.0,181.97,0.06]
[1754770938612,11.22134662,181.98,181.97,0.06]
[1754770939298,11.91134662,181.98,181.97,0.06]
[1754770941716,11.91134662,181.98,181.97,3.8550024]
[1754770945714,11.91134662,181.98,181.97,0.06]
[1754770945921,11.91134662,181.98,181.97,3.8550024]
[1754770947812,5.49510935,181.98,181.97,3.8550024]
[1754770949512,11.22104467,181.99,181.97,3.8550024]
[1754770949717,11.22104467,181.99,181.98,43.7550024]
[1754770950322,11.22104467,181.99,181.98,39.96]
[1754770950529,11.22104467,181.99,181.98,43.75270302]
[1754770951032,11.93104467,181.99,181.98,3.79270302]
[1754770951330,11.93104467,181.99,181.97,3.85270302]
[1754770951532,6.43623727,181.98,181.97,3.85270302]
[1754770952515,5.4948074,181.99,181.97,10.23894029]
[1754770952711,5.4948074,181.99,181.98,44.41213775]
[1754770953229,11.22044088,182.01,181.98,43.75213775]
[1754770953530,11.93044088,182.01,181.99,3.79213775]
[1754770954139,5.72623727,182.0,181.98,39.96]
[1754770954333,5.4948074,181.99,181.98,40.62]
[1754770955533,5.49450549,182.0,181.98,40.62]
[1754770956253,5.72623727,181.99,181.97,0.06]
[1754770956432,5.72623727,181.99,181.98,39.96]
[1754770956939,11.22074276,182.0,181.98,39.96]
[1754770957324,5.49450549,182.0,181.98,39.96]
[1754770957521,5.49450549,182.0,181.98,40.62]
[1754770958442,5.72623727,182.01,181.98,40.62]
[1754770958443,11.22044088,182.01,181.98,40.62]
[1754770958639,11.22044088,182.01,181.98,0.66]
[1754770958831,11.22044088,182.01,181.99,39.96]
[1754770959029,11.93044088,182.01,181.99,39.96]
[1754770959743,11.22044088,182.01,181.99,39.96]
[1754770959936,5.49420361,182.01,181.99,39.96]
[1754770960140,11.22044088,182.01,181.99,39.96]
[1754770960844,5.49420361,182.01,181.99,39.96]
[1754770961038,5.49420361,182.01,182.0,0.66]
[1754770962053,0.03,182.02,182.0,0.66]
[1754770962723,0.03,182.02,182.01,0.66]
[1754770964049,6.46623727,182.02,181.99,39.96]
[1754770964649,6.46623727,182.02,182.0,39.94]
[1754770965151,5.49420361,182.01,182.0,39.94]
[1754770965942,5.49420361,182.01,182.0,40.6]
[1754770966952,0.03,182.02,182.0,40.6]
[1754770967951,0.03,182.02,182.01,0.66]
[1754770968575,0.03,182.02,182.01,6.38623727]
[1754770969277,0.03,182.02,182.01,21.49245284]
[1754770969834,0.03,182.02,182.01,25.2540367]
[1754770970667,0.03,182.02,182.01,19.52779943]
[1754770970845,0.03,182.02,182.01,70.36158386]
[1754770971048,0.03,182.02,182.01,76.08782113]
[1754770971567,0.03,182.02,182.01,91.1940367]
[1754770972340,0.03,182.02,182.01,91.19218705]
[1754770974545,0.03,182.02,182.01,107.69218705]
[1754770974846,0.03,182.02,182.01,113.18639066]
[1754770975052,0.03,182.02,182.01,209.83639066]
[1754770976258,0.03,182.02,182.01,169.89639066]
[1754770976454,0.03,182.02,182.01,198.59594978]
[1754770976656,0.03,182.02,182.01,114.85218705]
[1754770976874,0.03,182.02,182.01,154.77218705]
[1754770978360,0.03,182.02,182.01,65.17218705]
[1754770978974,0.03,182.02,182.01,98.22218705]
[1754770979181,0.03,182.02,182.01,92.50594978]
[1754770979352,0.03,182.02,182.01,98.23218705]
[1754770979761,0.03,182.02,182.01,97.56218705]
[1754770980375,0.69,182.02,182.01,3.75973421]
[1754770980556,6.41623727,182.02,182.01,3.75973421]
[1754770980875,0.69,182.02,182.01,43.67973421]
[1754770981255,0.03,182.02,182.01,43.67973421]
[1754770981576,0.69,182.02,182.01,43.67973421]
[1754770982364,6.18390176,182.02,182.01,43.67973421]
[1754770984179,0.03,182.02,182.01,50.07597148]
[1754770984486,0.03,182.02,182.01,49.40597148]
[1754770986752,0.03,182.02,182.01,49.40380913]
[1754770990455,0.69,182.02,182.01,3.75757186]
[1754770990763,0.69,182.02,182.01,43.65757186]
[1754770990962,0.03,182.02,182.01,43.65757186]
[1754770991163,0.03,182.02,182.01,49.38380913]
[1754770991778,0.03,182.02,182.01,43.65757186]
[1754770991984,0.03,182.02,182.01,49.38380913]
[1754770993371,0.69,182.02,182.01,3.75757186]
[1754770993569,0.69,182.02,182.01,43.65757186]
[1754770994384,0.03,182.02,182.01,43.65757186]
[1754770998678,0.03,182.02,182.01,50.05380913]
[1754770999571,0.03,182.02,182.01,44.32757186]
[1754770999773,0.03,182.02,182.01,50.05380913]
[1754771001388,0.03,182.02,182.01,83.10380913]
[1754771003984,0.03,182.02,182.01,77.37757186]
[1754771004181,0.69,182.02,182.01,76.68757186]
[1754771005084,0.03,182.02,182.01,82.41380913]
[1754771005283,0.03,182.02,182.01,83.08380913]
[1754771008288,0.03,182.02,182.01,76.68757186]
[1754771008483,0.03,182.02,182.01,82.41380913]
[1754771009095,0.03,182.02,182.01,83.08380913]
[1754771010691,0.03,182.02,182.01,82.42937227]
[1754771013126,0.03,182.02,182.01,83.09937227]
[1754771014231,0.03,182.02,182.01,79.32623727]
[1754771016730,0.03,182.02,182.01,94.43245284]
[1754771022829,0.03,182.02,182.01,206.02665645]
[1754771039945,0.03,182.04,182.01,206.02665645]
[1754771040120,0.03,182.06,182.05,26.0]
[1754771040319,0.03,182.06,182.05,184.65623727]
[1754771040522,0.03,182.06,182.05,185.34623727]
[1754771040830,0.03,182.06,182.05,190.83923369]
[1754771041033,0.03,182.08,182.07,49.55]
[1754771041332,0.03,182.08,182.07,97.85819804]
[1754771042250,0.74,182.08,182.07,70.38245284]
[1754771042456,0.74,182.08,182.07,110.16245284]
[1754771044251,0.03,182.12,182.11,33.05]
[1754771044551,0.03,182.12,182.11,39.76]
[1754771046250,0.21,182.12,182.11,39.76]
[1754771046564,0.03,182.12,182.11,45.48623727]
[1754771048633,0.03,182.12,182.11,78.53623727]
[1754771048836,0.03,182.12,182.11,79.22623727]
[1754771049731,0.03,182.12,182.11,78.53623727]
[1754771050560,0.03,182.12,182.11,79.22623727]
[1754771050737,0.03,182.12,182.11,78.53623727]
[1754771050937,0.03,182.12,182.11,79.22623727]
[1754771052236,0.03,182.12,182.11,78.53623727]
[1754771052961,0.03,182.12,182.11,79.22623727]
[1754771054668,0.03,182.12,182.11,78.53623727]
[1754771054874,0.03,182.12,182.11,79.22623727]
[1754771055541,0.03,182.12,182.11,94.33245284]
[1754771058876,0.03,182.12,182.11,99.82363948]
[1754771059378,0.03,182.12,182.11,116.32363948]
[1754771059565,0.03,182.12,182.11,110.83245284]
[1754771060572,0.03,182.12,182.11,105.10621557]
[1754771060784,0.03,182.12,182.11,110.83245284]
[1754771063077,0.03,182.12,182.11,78.53623727]
[1754771065472,0.74,182.12,182.11,33.05]
[1754771065856,0.74,182.12,182.11,72.73]
[1754771066187,6.46623727,182.12,182.08,26.0]
[1754771066484,5.49118664,182.11,182.09,39.68]
[1754771066976,0.71,182.1,182.09,39.68]
[1754771067479,5.49118664,182.11,182.09,39.68]
[1754771067777,0.03,182.12,182.1,33.74]
[1754771067967,0.03,182.12,182.11,45.40623727]
[1754771068164,5.52088513,182.12,182.11,45.40623727]
[1754771068361,6.23088513,182.12,182.11,39.68]
[1754771069579,0.03,182.12,182.11,39.68]
[1754771071575,0.03,182.12,182.11,40.4]
[1754771071772,0.03,182.12,182.11,46.12623727]
[1754771071977,0.03,182.12,182.11,45.40623727]
[1754771072659,0.03,182.12,182.11,46.12623727]
[1754771074269,0.03,182.12,182.11,49.90587107]
[1754771075584,0.03,182.12,182.11,65.01208664]
[1754771075778,0.03,182.12,182.11,124.06208664]
[1754771077390,0.03,182.12,182.11,129.55327328]
[1754771078788,0.00218585,182.12,182.11,209.65327328]
[1754771079303,0.00218585,182.12,182.11,147.98208664]
[1754771079484,0.00218585,182.12,182.11,187.62208664]
[1754771079662,0.00218585,182.12,182.11,186.90208664]
[1754771079997,0.00218585,182.12,182.11,187.62208664]
[1754771080599,0.00218585,182.12,182.11,186.90208664]
[1754771080965,0.00218585,182.12,182.11,187.62208664]
[1754771081998,0.00218585,182.12,182.11,98.02208664]
[1754771082177,0.00218585,182.12,182.11,120.01327328]
[1754771083478,0.00218585,182.12,182.11,209.61327328]
[1754771088211,0.00218585,182.12,182.11,211.81041228]
[1754771088589,0.00218585,182.12,182.11,172.17041228]
[1754771088798,0.03,182.14,182.13,79.88245284]
[1754771088970,0.03,182.14,182.13,123.26208664]
[1754771089416,0.71,182.14,182.13,108.15587107]
[1754771090105,0.71,182.14,182.13,108.15793387]
[1754771090274,6.2002822,182.14,182.13,43.3816966]
[1754771090680,11.92651947,182.14,182.13,43.3816966]
[1754771090881,6.2002822,182.14,182.13,43.3816966]
[1754771092881,6.2002822,182.14,182.13,43.38347644]
[1754771093414,0.03,182.14,182.13,76.34347644]
[1754771093596,0.03,182.14,182.13,82.06971371]
[1754771093800,0.03,182.14,182.13,76.34347644]
[1754771095980,0.03,182.14,182.13,82.06971371]
[1754771096186,6.43623727,182.14,182.11,0.06]
[1754771096397,0.68,182.13,182.12,3.78561375]
[1754771096712,0.68,182.13,182.11,0.06]
[1754771097789,5.49088513,182.12,182.11,0.06]
[1754771100003,6.21088513,182.12,182.11,0.06]
[1754771100610,11.9371224,182.12,182.11,0.06]
[1754771102096,6.21088513,182.12,182.11,0.06]
[1754771102290,11.9371224,182.12,182.11,0.06]
[1754771102683,6.21088513,182.12,182.11,0.06]
[1754771102888,11.9371224,182.12,182.11,0.06]
[1754771105505,25.66433522,182.12,182.08,39.64]
[1754771105704,6.44623727,182.11,182.08,39.64]
[1754771106022,5.72623727,182.11,182.08,40.34]
[1754771106203,5.49148819,182.1,182.08,40.34]
[1754771106527,5.49148819,182.1,182.08,39.64]
[1754771109123,5.49148819,182.1,182.09,0.7]
[1754771109622,5.49148819,182.1,182.08,39.64]
[1754771109790,5.49148819,182.1,182.08,40.34]
[1754771110193,5.49148819,182.1,182.09,0.7]
[1754771110399,4.62422479,182.25,182.15,32.96]
[1754771110600,0.72,182.39,182.3,26.0]
[1754771110803,0.72,182.39,182.38,5.72623727]
[1754771111103,0.72,182.41,182.38,5.72623727]
[1754771111304,0.72,182.41,182.39,5.72623727]
[1754771111542,0.72,182.4,182.38,39.94]
[1754771111714,0.72,182.39,182.38,39.94]
[1754771112112,5.48187304,182.42,182.38,45.66623727]
[1754771112310,6.20095368,182.45,182.41,5.72623727]
[1754771112616,6.20095368,182.45,182.43,5.72623727]
[1754771113350,6.20095368,182.45,182.42,45.64623727]
[1754771113513,5.48095368,182.45,182.42,45.64623727]
[1754771113845,0.72,182.44,182.42,39.92]
[1754771114132,0.72,182.43,182.41,39.9]
[1754771115336,0.72,182.42,182.4,39.88]
[1754771116124,5.48215558,182.41,182.4,39.88]
[1754771116338,0.72,182.42,182.4,39.88]
[1754771117207,8.97925676,182.42,182.4,39.88]
[1754771117941,9.25925676,182.43,182.4,39.88]
[1754771118960,5.48125411,182.44,182.4,39.88]
[1754771118961,5.48125411,182.44,182.4,40.58]
[1754771119119,9.25925676,182.43,182.4,40.58]
[1754771119323,19.18438938,182.44,182.4,39.88]
[1754771119622,19.90438938,182.44,182.4,39.82]
[1754771119823,19.18438938,182.44,182.4,39.82]
[1754771120027,9.25925676,182.43,182.4,39.86]
[1754771120717,9.25925676,182.43,182.4,40.56]
[1754771120914,9.25925676,182.43,182.4,39.86]
[1754771121315,5.48185505,182.42,182.4,49.81925676]
[1754771121634,5.48185505,182.42,182.41,0.7]
[1754771122216,5.48185505,182.42,182.4,39.86]
[1754771124018,9.25925676,182.42,182.4,39.86]
[1754771124233,9.25925676,182.42,182.4,11.12880534]
[1754771124423,9.25925676,182.41,182.35,9.95925676]
[1754771124632,0.72,182.42,182.36,49.13925676]
[1754771124838,9.25925676,182.4,182.36,40.58]
[1754771125038,9.25925676,182.4,182.37,0.7]
[1754771125247,9.25925676,182.4,182.38,0.7]
[1754771125557,9.25925676,182.4,182.36,39.88]
[1754771125741,9.25925676,182.4,182.36,40.58]
[1754771126129,5.48275673,182.39,182.36,40.58]
[1754771126540,14.74201349,182.39,182.36,40.58]
[1754771126747,9.25925676,182.38,182.33,3.50262849]
[1754771126959,9.25925676,182.34,182.3,32.96]
[1754771127156,0.72,182.37,182.3,32.96]
[1754771127456,47.3234322,182.39,182.31,9.95925676]
[1754771127778,9.25925676,182.36,182.32,0.7]
[1754771128254,9.25925676,182.37,182.33,0.7]
[1754771128437,9.25925676,182.37,182.34,0.7]
[1754771128639,47.3234322,182.39,182.34,0.7]
[1754771129041,9.25925676,182.37,182.34,0.7]
[1754771130049,5.48365869,182.36,182.34,0.7]
[1754771133732,39.9,182.41,182.35,0.67]
[1754771133934,15.13621557,182.44,182.36,64.56621557]
[1754771133935,0.03,182.44,182.36,64.56621557]
[1754771134235,0.03,182.44,182.43,9.25925676]
[1754771134635,0.03,182.44,182.43,9.92925676]
[1754771136239,0.03,182.44,182.41,0.67]
[1754771136440,0.03,182.44,182.39,48.06621557]
[1754771136441,0.67,182.43,182.39,48.06621557]
[1754771136743,0.03,182.44,182.41,5.68030468]
[1754771136944,0.03,182.44,182.4,0.67]
[1754771137168,0.03,182.44,182.4,5.68030468]
[1754771137169,0.7,182.44,182.4,5.68030468]
[1754771137649,0.03,182.44,182.43,59.42682493]
[1754771137979,0.03,182.44,182.43,60.09682493]
[1754771138340,0.03,182.44,182.43,54.41652025]
[1754771138767,0.03,182.44,182.43,25.02687301]
[1754771139749,0.03,182.44,182.4,26.0]
[1754771139750,0.03,182.44,182.41,15.10621557]
[1754771139948,0.03,182.44,182.42,9.92065744]
[1754771140756,0.03,182.44,182.42,0.67]
[1754771142270,0.03,182.44,182.41,35.25065744]
[1754771142447,0.03,182.44,182.41,35.92065744]
[1754771142642,0.03,182.44,182.41,35.25065744]
[1754771142966,0.03,182.44,182.42,0.67]
[1754771143347,0.03,182.44,182.43,0.67]
[1754771144252,0.03,182.44,182.42,16.5]
[1754771144566,0.03,182.44,182.42,0.67]
[1754771144947,0.7,182.44,182.39,0.67]
[1754771145146,9.25065744,182.41,182.36,9.92065744]
[1754771145362,9.25065744,182.38,182.34,0.73]
[1754771146358,28.44030599,182.39,182.34,9.31065744]
[1754771146665,28.44030599,182.39,182.35,0.67]
[1754771147861,9.92065744,182.38,182.34,26.06]
[1754771148375,9.25065744,182.37,182.34,26.06]
[1754771148575,9.25065744,182.36,182.32,0.73]
[1754771148758,9.25065744,182.33,182.3,0.06]
[1754771148960,9.25065744,182.31,182.3,0.06]
[1754771149279,9.25065744,182.32,182.27,9.92065744]
[1754771149465,9.25065744,182.33,182.28,9.31065744]
[1754771149668,5.48486178,182.32,182.29,0.67]
[1754771150171,5.48486178,182.32,182.3,0.67]
[1754771151863,22.9626091,182.33,182.3,0.67]
[1754771153376,28.44717006,182.33,182.3,0.67]
[1754771153565,19.19651262,182.33,182.3,0.67]
[1754771153879,28.44717006,182.33,182.3,0.67]
[1754771154379,26.0,182.39,182.3,39.11538435]
[1754771154580,5.48155456,182.43,182.37,9.25065744]
[1754771154758,9.25065744,182.42,182.32,48.06621557]
[1754771155082,9.25065744,182.42,182.37,9.25065744]
[1754771155378,9.25065744,182.39,182.35,9.25065744]
[1754771155580,16.461357,182.53,182.42,41.10621557]
[1754771155777,9.92065744,182.51,182.43,9.25065744]
[1754771156082,49.98065744,182.51,182.43,9.92065744]
[1754771156268,9.25065744,182.5,182.43,9.92065744]
[1754771156769,13.70120128,182.47,182.43,9.92065744]
[1754771157683,0.03,182.45,182.43,9.92065744]
[1754771158673,0.03,182.45,182.43,42.88065744]
[1754771158876,0.03,182.45,182.43,9.25065744]
[1754771159280,0.03,182.45,182.43,9.95065744]
[1754771159586,0.03,182.45,182.43,9.25065744]
[1754771159764,0.03,182.45,182.43,9.95065744]
[1754771159957,0.03,182.45,182.43,25.05687301]
[1754771160158,0.03,182.45,182.39,0.7]
[1754771160464,0.03,182.45,182.4,0.7]
[1754771160661,0.03,182.45,182.42,9.25065744]
[1754771160861,0.03,182.45,182.41,9.25065744]
[1754771161599,0.03,182.45,182.42,9.25065744]
[1754771161796,0.03,182.45,182.41,0.7]
[1754771161978,0.03,182.45,182.42,9.25065744]
[1754771162788,5.51095368,182.45,182.42,9.25065744]
[1754771163098,5.51095368,182.45,182.42,9.95065744]
[1754771163394,5.51095368,182.45,182.43,9.95065744]
[1754771164494,5.51095368,182.45,182.43,28.80848786]
[1754771164868,0.03,182.45,182.43,28.80848786]
[1754771165275,0.03,182.45,182.43,78.26848786]
[1754771166797,0.03,182.45,182.43,78.81664331]
[1754771166997,0.03,182.45,182.44,64.56621557]
[1754771167287,5.47915182,182.51,182.48,48.06621557]
[1754771167489,5.47915182,182.51,182.49,4.45161485]
[1754771167663,5.47915182,182.51,182.48,48.06621557]
[1754771167664,5.47915182,182.51,182.5,13.70227229]
[1754771168180,13.69509211,182.55,182.5,13.70227229]
[1754771168370,13.69509211,182.55,182.53,9.25065744]
[1754771168978,14.41509211,182.55,182.53,9.25065744]
[1754771169188,13.69509211,182.55,182.48,48.06621557]
[1754771169386,13.69509211,182.55,182.53,9.25065744]
[1754771170480,13.69509211,182.55,182.5,0.7]
[1754771170684,0.72,182.54,182.52,9.25065744]
[1754771171285,13.69509211,182.55,182.52,9.25065744]
[1754771171482,14.41509211,182.55,182.48,48.76621557]
[1754771171800,14.41509211,182.55,182.52,9.25065744]
[1754771172600,19.89304335,182.55,182.49,0.7]
[1754771172799,19.17304335,182.55,182.52,9.25065744]
[1754771173380,19.17304335,182.55,182.53,9.25065744]
[1754771173599,19.17304335,182.55,182.49,0.7]
[1754771173785,19.17304335,182.55,182.5,3.73573013]
[1754771173986,19.17304335,182.55,182.52,9.25065744]
[1754771174195,19.17304335,182.55,182.54,9.25065744]
[1754771174784,5.47795124,182.55,182.54,9.95065744]
[1754771175106,5.47795124,182.55,182.54,12.74732175]
[1754771175291,5.47795124,182.55,182.54,12.04732175]
[1754771175491,5.47795124,182.55,182.54,15.77961641]
[1754771175701,5.47795124,182.55,182.54,6.52895897]
[1754771176207,29.14057737,182.58,182.54,12.9829521]
[1754771176382,0.72,182.57,182.54,9.25065744]
[1754771176699,19.16991993,182.58,182.55,9.25065744]
[1754771176878,19.16991993,182.58,182.54,9.25065744]
[1754771177077,19.88991993,182.58,182.54,9.25065744]
[1754771177493,19.88991993,182.58,182.55,9.25065744]
[1754771177715,19.88991993,182.58,182.52,26.7]
[1754771177716,19.16991993,182.58,182.56,9.25065744]
[1754771178079,13.69286878,182.58,182.57,9.25065744]
[1754771178282,13.69286878,182.58,182.56,0.7]
[1754771178482,13.69286878,182.58,182.57,9.25065744]
[1754771180480,13.69286878,182.58,182.57,12.97556877]
[1754771180803,13.69286878,182.58,182.57,3.72491133]
[1754771181005,13.69286878,182.58,182.57,9.25065744]
[1754771182011,13.72286878,182.58,182.57,9.25065744]
[1754771183007,13.72286878,182.58,182.57,13.67148496]
[1754771183225,0.03,182.58,182.57,13.67148496]
[1754771184797,0.03,182.58,182.57,9.95065744]
[1754771185218,0.03,182.58,182.57,35.95065744]
[1754771185394,0.03,182.58,182.57,39.66571508]
[1754771186711,0.03,182.58,182.54,50.78860302]
[1754771186712,36.00065744,182.58,182.47,9.95065744]
[1754771186892,9.25065744,182.56,182.48,0.7]
[1754771187214,40.18,182.56,182.52,9.25065744]
[1754771187394,40.18,182.56,182.48,15.10621557]
[1754771187598,40.18,182.56,182.53,9.25065744]
[1754771187795,49.43065744,182.56,182.5,0.7]
[1754771187997,9.97065744,182.55,182.5,9.25065744]
[1754771188210,0.72,182.54,182.49,35.25065744]
[1754771188417,19.17493014,182.53,182.49,35.25065744]
[1754771189403,19.17493014,182.53,182.5,9.25065744]
[1754771189707,19.84493014,182.53,182.49,9.25065744]
[1754771189907,9.25065744,182.51,182.46,9.25065744]
[1754771190111,9.92065744,182.51,182.46,9.25065744]
[1754771190316,19.17808218,182.5,182.45,0.06]
[1754771190526,19.17808218,182.5,182.47,9.25065744]
[1754771191020,19.17808218,182.5,182.46,9.94065744]
[1754771191204,19.17808218,182.5,182.46,35.94065744]
[1754771191716,9.92065744,182.49,182.45,0.06]
[1754771192017,9.92065744,182.49,182.43,1e-08]
[1754771192018,9.25065744,182.46,182.43,1e-08]
[1754771192198,49.47065744,182.48,182.43,1e-08]
[1754771192394,28.4318927,182.47,182.43,1e-08]
[1754771192593,9.92065744,182.46,182.43,1e-08]
[1754771193125,0.67,182.46,182.43,1e-08]
[1754771193706,0.67,182.46,182.43,32.96000001]
[1754771193915,0.67,182.46,182.43,1e-08]
[1754771194422,5.48095368,182.45,182.43,1e-08]
[1754771195427,6.15095368,182.45,182.43,1e-08]
[1754771196126,5.48095368,182.45,182.43,1e-08]
[1754771197222,5.48095368,182.45,182.43,0.69000001]
[1754771197425,5.47902016,182.52,182.51,26.0]
[1754771197727,5.47902016,182.52,182.51,51.04687301]
[1754771199112,19.19967903,182.58,182.51,51.04687301]
[1754771199425,19.19967903,182.58,182.56,9.25065744]
[1754771200111,0.67,182.57,182.52,0.69]
[1754771200310,0.67,182.57,182.55,9.25065744]
[1754771200922,19.19967903,182.58,182.55,9.25065744]
[1754771201121,19.86967903,182.58,182.55,9.25065744]
[1754771203614,19.86967903,182.58,182.52,0.69]
[1754771203810,19.86967903,182.58,182.55,9.25065744]
[1754771204637,19.86967903,182.58,182.52,0.69]
[1754771204812,19.19967903,182.58,182.56,9.25065744]
[1754771206640,19.19967903,182.58,182.53,0.69]
[1754771206838,19.19967903,182.58,182.56,9.25065744]
[1754771207217,19.19967903,182.58,182.55,9.25065744]
[1754771208719,19.19967903,182.58,182.56,9.25065744]
[1754771210127,19.19967903,182.58,182.54,0.69]
[1754771210339,19.19967903,182.58,182.56,9.25065744]
[1754771212322,19.19967903,182.58,182.54,0.69]
[1754771212529,19.19967903,182.58,182.57,9.25065744]
[1754771214320,19.19967903,182.58,182.57,0.69]
[1754771214321,5.50705115,182.58,182.57,0.69]
[1754771214529,5.50705115,182.58,182.57,9.94065744]
[1754771214717,5.50705115,182.58,182.57,0.69]
[1754771214936,5.50705115,182.58,182.57,9.94065744]
[1754771215133,5.50705115,182.58,182.57,0.69]